bitfinex/quotes_ETHUSD_20250705
["timestamp","ask_amount","ask_price","bid_price","bid_amount"]
[1751698936192,5.01575608,2530.9,2530.8,7.97]
[1751698938182,5.01579267,2530.9,2530.8,7.97]
[1751698949816,4.64534997,2530.9,2530.8,7.97]
[1751698950110,5.01587977,2530.9,2530.8,7.97]
[1751698950312,5.01588576,2530.9,2530.8,7.97]
[1751698951783,1.06472215,2530.9,2530.8,7.97]
[1751698951984,0.56933579,2530.9,2530.8,7.97]
[1751698952730,4.5204994,2530.9,2530.8,7.97]
[1751698956609,0.56933579,2530.9,2530.8,7.97]
[1751698959723,4.5204994,2530.9,2530.8,7.97]
[1751698960018,0.56933579,2530.9,2530.8,8.7823]
[1751698960213,0.37253579,2530.9,2530.8,8.7823]
[1751698961729,0.37275416,2530.9,2530.8,8.7823]
[1751698967627,0.37264847,2530.9,2530.8,8.7823]
[1751698968315,0.37264847,2530.9,2530.8,7.97]
[1751698968815,0.37264847,2530.9,2530.8,0.001]
[1751698969003,0.37264847,2530.9,2530.8,7.966]
[1751698971130,0.37264847,2530.9,2530.8,0.001]
[1751698971435,4.52061208,2530.9,2530.8,7.966]
[1751698974143,4.52061208,2530.9,2530.8,0.001]
[1751698974320,5.4439869,2530.9,2530.8,7.966]
[1751698975040,5.4439869,2530.9,2530.8,0.001]
[1751698975336,5.4439869,2530.9,2530.8,7.965]
[1751698984236,5.44399188,2530.9,2530.8,7.965]
[1751698987456,5.44399188,2530.9,2530.8,0.001]
[1751698987628,16.23749188,2530.9,2530.8,0.001]
[1751698987827,16.23749188,2530.9,2530.8,7.964]
[1751698988538,15.44399188,2530.9,2530.8,7.964]
[1751698989931,15.44399188,2530.9,2530.8,0.001]
[1751698990132,15.44399188,2530.9,2530.8,7.964]
[1751698991760,20.90251532,2530.9,2530.8,7.964]
[1751698999048,20.53186187,2530.9,2530.8,7.964]
[1751699010498,15.07333843,2530.9,2530.8,7.964]
[1751699010696,20.53186187,2530.9,2530.8,7.964]
[1751699019106,20.53186187,2530.9,2530.8,0.001]
[1751699019517,20.53186187,2530.9,2530.8,7.962]
[1751699020513,20.90277706,2530.9,2530.8,7.962]
[1751699025825,20.90277122,2530.9,2530.8,7.962]
[1751699027019,15.44424778,2530.9,2530.8,7.962]
[1751699027220,14.52087296,2530.9,2530.8,7.962]
[1751699027422,3.95101006,2531.0,2530.9,85.47912704]
[1751699027992,3.95087974,2531.1,2530.9,85.47912704]
[1751699027993,3.95064083,2531.3,2531.0,0.7644]
[1751699028200,0.1968,2531.2,2531.0,0.7644]
[1751699028401,0.1968,2531.2,2531.1,3.84889248]
[1751699028613,0.1968,2531.2,2531.0,0.7644]
[1751699030229,0.1968,2531.2,2531.1,7.959]
[1751699036411,0.002,2531.4,2531.3,0.7887]
[1751699036729,0.002,2531.4,2531.3,10.78726807]
[1751699036897,0.002,2531.4,2531.3,10.94456268]
[1751699037098,0.002,2531.4,2531.3,13.22998577]
[1751699038448,0.002,2531.4,2531.3,13.82998577]
[1751699038619,0.002,2531.4,2531.3,21.78798577]
[1751699039827,0.002,2531.4,2531.3,23.82456329]
[1751699040834,0.002,2531.4,2531.3,17.70846233]
[1751699041447,0.002,2531.4,2531.3,7.82146233]
[1751699041608,0.002,2531.4,2531.3,17.70846233]
[1751699041939,0.002,2531.4,2531.3,17.10846233]
[1751699042109,0.002,2531.4,2531.3,3.27092309]
[1751699042308,0.002,2531.4,2531.3,0.9855]
[1751699042638,0.002,2531.4,2531.3,10.8725]
[1751699043641,0.002,2531.4,2531.3,2.9165]
[1751699043832,0.002,2531.4,2531.3,10.8725]
[1751699044646,0.002,2531.4,2531.3,14.82303924]
[1751699044848,0.002,2531.4,2531.3,16.70042807]
[1751699045745,0.002,2531.4,2531.3,12.74988883]
[1751699045912,0.002,2531.4,2531.3,2.7197]
[1751699046115,0.002,2531.4,2531.3,10.6747]
[1751699046949,0.002,2531.4,2531.3,0.7887]
[1751699047144,0.002,2531.4,2531.3,8.7437]
[1751699052049,0.002,2531.4,2531.3,20.1893402]
[1751699052254,0.002,2531.4,2531.3,23.34644216]
[1751699052554,0.002,2531.4,2531.3,33.34644216]
[1751699052954,0.002,2531.4,2531.3,25.8513412]
[1751699054445,0.002,2531.5,2531.4,13.95038318]
[1751699054645,0.002,2531.5,2531.4,22.26018414]
[1751699054848,0.002,2531.5,2531.4,26.10907662]
[1751699055654,0.002,2531.5,2531.4,19.16397566]
[1751699059855,0.002,2531.5,2531.4,28.49797566]
[1751699062043,0.002,2531.5,2531.4,28.69477566]
[1751699067270,4.51886749,2531.5,2531.4,7.953]
[1751699068345,0.56864036,2531.5,2531.4,7.953]
[1751699068545,4.51886749,2531.5,2531.4,7.953]
[1751699069776,4.51886749,2531.5,2531.2,1.93]
[1751699069777,3.95053924,2531.3,2531.2,1.93]
[1751699069940,0.36984036,2531.3,2531.2,9.884]
[1751699070147,0.36975747,2531.3,2531.2,9.884]
[1751699070657,4.32029671,2531.3,2531.2,9.884]
[1751699071647,0.36975747,2531.3,2531.2,9.884]
[1751699073675,4.32029671,2531.3,2531.2,9.884]
[1751699073981,0.36975747,2531.3,2531.2,9.884]
[1751699074780,0.36975747,2531.3,2531.2,9.885]
[1751699075585,4.32029671,2531.3,2531.2,9.885]
[1751699075880,3.95069532,2531.2,2530.9,87.40912704]
[1751699076081,0.36975747,2531.3,2530.9,87.40912704]
[1751699076082,0.1968,2531.3,2531.0,7.955]
[1751699076255,4.1474203,2531.3,2531.0,7.955]
[1751699076455,4.14742543,2531.3,2531.0,7.955]
[1751699076654,4.14742543,2531.3,2531.1,0.6]
[1751699076973,4.14742543,2531.3,2530.9,87.40912704]
[1751699076974,4.14742543,2531.3,2531.2,7.955]
[1751699079461,0.1968,2531.3,2531.2,7.955]
[1751699080584,4.14733924,2531.3,2531.2,7.955]
[1751699080963,0.1968,2531.3,2531.2,7.955]
[1751699085294,4.14733924,2531.3,2531.2,7.955]
[1751699085584,0.1968,2531.3,2531.2,7.955]
[1751699088191,0.56595707,2531.3,2531.2,7.955]
[1751699089300,0.56595707,2531.3,2530.9,91.36027456]
[1751699089592,0.36915707,2531.2,2531.0,7.955]
[1751699089759,0.36915707,2531.1,2531.0,7.955]
[1751699090800,0.36937347,2531.1,2531.0,7.955]
[1751699094708,0.36937347,2531.1,2531.0,11.9060075]
[1751699095079,0.36937347,2531.1,2531.0,7.955]
[1751699095278,0.36937347,2531.1,2531.0,11.80389248]
[1751699095812,0.37021354,2531.1,2531.0,11.80389248]
[1751699097681,0.37021354,2531.1,2531.0,15.75489998]
[1751699099921,0.37021354,2531.1,2531.0,16.76579998]
[1751699100700,0.37021354,2531.1,2531.0,8.81079998]
[1751699101020,0.37021354,2531.1,2531.0,16.76579998]
[1751699104924,0.37021354,2531.1,2531.0,24.81090094]
[1751699108032,10.1968,2531.9,2531.5,3.95017733]
[1751699108244,0.37033891,2531.8,2531.6,7.955]
[1751699108408,0.37033891,2531.7,2531.6,7.955]
[1751699108907,0.37033891,2531.7,2531.6,11.9050711]
[1751699109143,0.37033891,2531.7,2531.6,7.955]
[1751699110610,0.37006756,2531.7,2531.6,7.955]
[1751699115221,0.37006756,2531.7,2531.6,8.48726256]
[1751699116540,0.36977714,2531.7,2531.6,8.48726256]
[1751699116741,0.36977714,2531.7,2531.6,7.955]
[1751699119943,0.36977714,2531.7,2531.6,11.9050711]
[1751699120433,0.36977714,2531.7,2531.6,7.955]
[1751699122518,0.36974312,2531.7,2531.6,7.955]
[1751699125140,0.36974312,2531.7,2531.6,11.9050711]
[1751699125341,0.36974312,2531.7,2531.6,13.58666807]
[1751699125543,0.36974312,2531.7,2531.6,9.63659697]
[1751699127932,0.36974312,2531.7,2531.6,7.955]
[1751699128960,0.36974312,2531.7,2531.4,0.1968]
[1751699129249,0.36974312,2531.6,2531.5,7.953]
[1751699130357,4.31988624,2531.6,2531.5,7.953]
[1751699130656,0.67314312,2531.6,2531.5,7.953]
[1751699132920,4.62321422,2531.6,2531.5,7.953]
[1751699134955,3.95024181,2531.5,2531.2,0.1968]
[1751699135181,0.36974312,2531.4,2531.3,7.953]
[1751699135760,0.36974312,2531.4,2531.3,8.553]
[1751699136860,0.36974312,2531.4,2531.3,7.953]
[1751699137033,0.3034,2531.6,2531.3,7.953]
[1751699137359,0.37034901,2531.5,2531.3,7.953]
[1751699137537,0.37034901,2531.4,2531.3,7.953]
[1751699142546,4.32073219,2531.4,2531.3,7.953]
[1751699144294,0.37034901,2531.4,2531.3,7.953]
[1751699144985,4.32073219,2531.4,2531.3,7.953]
[1751699147685,0.37034901,2531.4,2531.3,7.953]
[1751699148885,0.37017234,2531.4,2531.3,7.953]
[1751699150786,4.32055552,2531.4,2531.3,7.953]
[1751699151975,4.32056082,2531.4,2531.3,7.953]
[1751699155190,1.55067657,2531.4,2531.3,7.953]
[1751699155408,5.50115483,2531.4,2531.3,7.953]
[1751699155592,5.13097719,2531.4,2531.3,7.953]
[1751699156775,1.18049893,2531.4,2531.3,7.953]
[1751699156971,4.25378318,2531.4,2531.3,7.953]
[1751699161193,4.62400666,2531.4,2531.3,7.953]
[1751699162564,4.62397441,2531.4,2531.3,7.953]
[1751699168565,4.62392613,2531.4,2531.3,7.953]
[1751699168999,4.32052613,2531.4,2531.3,7.953]
[1751699170296,0.37014295,2531.4,2531.3,7.953]
[1751699170502,4.32052613,2531.4,2531.3,7.953]
[1751699178380,6.19762406,2531.4,2531.3,7.953]
[1751699178779,6.19762406,2531.4,2531.3,7.952]
[1751699180723,6.19762406,2531.4,2530.9,86.27622704]
[1751699180724,3.95061334,2531.3,2530.9,86.27622704]
[1751699180921,0.37014295,2531.2,2531.0,7.952]
[1751699181221,0.37014295,2531.1,2531.0,7.952]
[1751699182916,0.37014295,2531.1,2531.0,16.57639998]
[1751699184023,0.37014295,2531.1,2531.0,12.62539248]
[1751699184319,0.37014295,2531.1,2531.0,16.57639998]
[1751699184689,0.37014295,2531.1,2531.0,17.17639998]
[1751699184887,0.37014295,2531.1,2531.0,17.37319998]
[1751699186223,4.14688037,2531.6,2531.2,0.7529]
[1751699186522,0.37063385,2531.5,2531.3,7.952]
[1751699186701,0.37063385,2531.4,2531.3,7.952]
[1751699190418,0.37063385,2531.4,2531.3,8.7049]
[1751699191727,4.32101931,2531.4,2531.3,7.951]
[1751699191939,4.32101931,2531.4,2530.9,86.26222704]
[1751699191940,1.24778098,2531.4,2530.9,86.26222704]
[1751699192138,3.95082075,2531.2,2531.0,7.951]
[1751699192438,4.32153032,2531.1,2530.9,85.47912704]
[1751699192637,3.95089647,2531.1,2531.0,7.951]
[1751699192850,4.32135893,2531.1,2531.0,7.951]
[1751699195159,0.37046246,2531.1,2531.0,7.951]
[1751699206769,0.3704567,2531.1,2531.0,7.951]
[1751699207067,0.3704567,2531.1,2530.9,85.47912704]
[1751699207358,4.1475734,2531.2,2531.0,7.951]
[1751699207521,0.37045612,2531.1,2531.0,7.951]
[1751699212344,0.37045612,2531.1,2531.0,8.7171]
[1751699212682,0.37045612,2531.1,2531.0,12.56599248]
[1751699213848,0.37045612,2531.1,2531.0,16.51699998]
[1751699215052,0.37045612,2531.1,2531.0,12.6681075]
[1751699218476,0.1968,2531.5,2531.1,3.95076086]
[1751699218792,0.37047207,2531.4,2531.2,7.951]
[1751699218995,0.37047207,2531.3,2531.2,7.951]
[1751699219402,4.32108793,2531.3,2531.0,0.9629]
[1751699219565,0.37047164,2531.2,2531.1,7.951]
[1751699225603,4.3211736,2531.2,2531.1,7.95]
[1751699226006,0.37047164,2531.2,2531.1,7.95]
[1751699226205,4.32118752,2531.2,2531.1,7.95]
[1751699227504,3.95087371,2531.1,2530.9,85.67592704]
[1751699227812,3.95077474,2531.2,2531.0,7.95]
[1751699228104,4.32132158,2531.1,2531.0,7.95]
[1751699228297,0.37047018,2531.1,2531.0,7.95]
[1751699229304,0.37045753,2531.1,2531.0,7.95]
[1751699230611,0.37046051,2531.1,2531.0,7.95]
[1751699236417,0.37045863,2531.1,2531.0,7.95]
[1751699237431,0.37045863,2531.1,2531.0,16.52379998]
[1751699237586,0.37045863,2531.1,2531.0,17.27059998]
[1751699237924,10.1968,2531.9,2531.5,3.95017511]
[1751699238128,0.37040724,2531.8,2531.6,8.7239]
[1751699238427,0.37041663,2531.7,2531.6,8.7239]
[1751699240807,0.37041663,2531.7,2531.6,12.6739711]
[1751699241031,0.37041663,2531.7,2531.6,8.7239]
[1751699241215,0.37041663,2531.7,2531.6,14.35608221]
[1751699241392,0.37041663,2531.7,2531.6,14.55288221]
[1751699243092,0.1968,2532.3,2532.2,3.94913513]
[1751699243303,0.36947046,2532.3,2532.2,12.71152648]
[1751699243504,0.36947046,2532.3,2532.2,14.53082282]
[1751699243822,0.36947046,2532.3,2532.2,10.58168769]
[1751699244386,0.36947046,2532.3,2532.2,14.53082282]
[1751699245908,0.0439866,2532.8,2532.5,3.94856935]
[1751699246109,0.0439866,2532.8,2532.4,4.75851204]
[1751699246110,0.36886557,2532.7,2532.6,8.82970814]
[1751699246397,0.36886557,2532.7,2532.6,7.959]
[1751699247200,0.36886557,2532.7,2532.6,12.71721141]
[1751699247400,0.0439866,2532.8,2532.7,3.9483555]
[1751699247606,0.0439866,2532.8,2532.7,3.98783905]
[1751699247804,0.0439866,2532.8,2532.7,5.91483905]
[1751699248012,0.0439866,2532.8,2532.7,3.84938056]
[1751699248213,0.0439866,2532.8,2532.7,11.76789701]
[1751699248632,0.0439866,2532.8,2532.7,9.84489701]
[1751699248937,0.0439866,2532.8,2532.7,7.962]
[1751699249120,3.99218622,2532.8,2532.7,7.962]
[1751699249432,0.0439866,2532.8,2532.7,7.962]
[1751699250208,0.0439866,2532.8,2532.7,7.961]
[1751699250607,0.0439866,2532.8,2532.7,7.96]
[1751699250809,3.99218622,2532.8,2532.7,7.96]
[1751699251010,0.0439866,2532.8,2532.7,7.96]
[1751699251340,0.1968,2532.7,2532.5,1.927]
[1751699251543,0.1968,2532.7,2532.6,7.712]
[1751699253144,0.0439866,2532.8,2532.6,7.712]
[1751699254637,3.9483555,2532.7,2532.6,7.712]
[1751699254852,3.9483555,2532.7,2532.6,7.962]
[1751699255216,4.2956533,2532.8,2532.6,7.962]
[1751699255412,5.14070575,2532.8,2532.6,7.962]
[1751699257050,4.83730575,2532.8,2532.6,7.962]
[1751699257216,0.88903905,2532.8,2532.6,7.962]
[1751699257421,0.0439866,2532.8,2532.6,7.962]
[1751699257622,0.0439866,2532.8,2532.6,8.7851]
[1751699258920,0.0439866,2532.8,2532.6,12.73361118]
[1751699259122,0.0439866,2532.8,2532.7,3.98783905]
[1751699259355,0.0439866,2532.8,2532.7,5.00773905]
[1751699259650,0.01,2533.0,2532.9,3.94804374]
[1751699259815,0.01,2533.0,2532.9,9.02638043]
[1751699260019,0.01,2533.0,2532.9,10.9199]
[1751699260342,0.01,2533.0,2532.9,14.86794374]
[1751699260524,0.01,2533.0,2532.9,17.48697412]
[1751699261524,0.01,2533.0,2532.9,13.53893038]
[1751699261855,0.01,2533.0,2532.9,3.63893038]
[1751699262030,0.01,2533.0,2532.9,10.9199]
[1751699264053,0.01,2533.0,2532.9,14.86794374]
[1751699266829,0.01,2533.0,2532.9,15.41794374]
[1751699267431,0.01,2533.0,2532.9,14.86794374]
[1751699268330,0.01,2533.0,2532.9,15.41794374]
[1751699268659,0.01,2533.0,2532.9,18.36763436]
[1751699269156,0.01,2533.0,2532.9,7.91763436]
[1751699269342,0.01,2533.0,2532.9,15.48194374]
[1751699269539,0.01,2533.0,2532.9,14.88194374]
[1751699275141,0.01,2533.0,2532.9,10.9339]
[1751699275334,0.01,2533.0,2532.9,14.88194374]
[1751699275656,0.01,2533.0,2532.9,12.11784374]
[1751699276072,0.01,2533.0,2532.9,10.23381968]
[1751699276386,0.01,2533.0,2532.9,14.18186342]
[1751699277060,0.01,2533.0,2532.9,10.23381968]
[1751699277267,0.01,2533.0,2532.9,14.18186342]
[1751699277555,0.01,2533.0,2532.9,15.52956342]
[1751699279051,0.01,2533.0,2532.9,7.55656342]
[1751699279376,0.01,2533.0,2532.9,15.53656342]
[1751699280171,0.01,2533.0,2532.9,14.98656342]
[1751699281678,0.01,2533.0,2532.9,14.18886342]
[1751699281842,0.01,2533.0,2532.9,12.12484374]
[1751699282050,0.01,2533.0,2532.9,8.1768]
[1751699282677,0.01,2533.0,2532.9,0.1968]
[1751699282880,0.37931585,2533.0,2532.9,8.1758]
[1751699283978,0.37931585,2533.0,2532.9,0.1968]
[1751699284178,0.37931585,2533.0,2532.9,8.1758]
[1751699284488,0.37931585,2533.0,2532.9,0.1968]
[1751699284656,0.37931585,2533.0,2532.9,8.1758]
[1751699287691,0.37931585,2533.0,2532.9,0.1968]
[1751699287692,4.76090952,2533.0,2532.9,0.1968]
[1751699287868,4.76090952,2533.0,2532.9,7.978]
[1751699289386,5.10830952,2533.0,2532.9,7.978]
[1751699289569,5.10830952,2533.0,2532.9,7.977]
[1751699290000,3.94825115,2532.8,2532.5,1.94]
[1751699290169,0.36931585,2532.7,2532.6,7.976]
[1751699290371,0.36931585,2532.7,2532.5,1.94]
[1751699290572,0.36931585,2532.6,2532.5,1.94]
[1751699290769,0.36931585,2532.6,2532.5,9.916]
[1751699291105,3.94825115,2532.8,2532.5,9.916]
[1751699291271,0.36990391,2532.7,2532.5,9.916]
[1751699291471,3.94825115,2532.8,2532.5,9.916]
[1751699291664,0.36990385,2532.7,2532.5,1.94]
[1751699291864,4.31842208,2532.6,2532.5,1.94]
[1751699292497,0.36991067,2532.6,2532.5,9.917]
[1751699297700,3.94866732,2532.5,2532.4,0.1968]
[1751699297895,5.09789518,2532.5,2532.4,7.975]
[1751699298088,5.09789518,2532.5,2532.1,0.1968]
[1751699298089,3.94895253,2532.4,2532.1,0.1968]
[1751699298378,3.94983167,2531.8,2531.7,0.1968]
[1751699298696,3.94983167,2531.8,2531.5,1.94]
[1751699298697,3.9500711,2531.6,2531.5,1.94]
[1751699298894,4.31954668,2531.6,2531.3,0.2407866]
[1751699299197,3.9490594,2532.3,2531.6,3.9500711]
[1751699299514,4.31826283,2532.2,2531.7,11.93188437]
[1751699299704,0.36899775,2532.1,2531.9,0.1968]
[1751699299908,0.36899775,2532.1,2532.0,8.01]
[1751699300478,4.31820832,2532.2,2532.0,8.01]
[1751699300677,0.36899775,2532.1,2532.0,8.01]
[1751699300906,0.36899775,2532.1,2532.0,8.011]
[1751699301312,0.071,2541.3,2532.0,8.011]
[1751699301313,0.3474,2532.9,2532.1,0.55]
[1751699301481,4.31683623,2532.8,2532.5,0.1968]
[1751699301819,0.368627,2532.7,2532.6,8.031]
[1751699302018,4.31689321,2532.8,2532.6,8.031]
[1751699302181,0.368627,2532.7,2532.6,8.031]
[1751699302716,1.83505632,2532.7,2532.6,8.031]
[1751699302877,0.368627,2532.7,2532.6,8.031]
[1751699303510,0.368627,2532.8,2532.6,8.031]
[1751699303810,0.368627,2532.7,2532.6,8.031]
[1751699304382,0.36864351,2532.8,2532.6,8.031]
[1751699304609,0.36864351,2532.7,2532.6,8.031]
[1751699307587,0.36877772,2532.7,2532.6,8.031]
[1751699311998,0.36903461,2532.7,2532.6,8.031]
[1751699314221,0.36903461,2532.7,2532.6,11.97951141]
[1751699314425,0.36903461,2532.7,2532.6,8.031]
[1751699316530,0.36936721,2532.7,2532.6,8.031]
[1751699317606,0.36943823,2532.7,2532.6,8.031]
[1751699318123,2.19601797,2532.7,2532.6,8.031]
[1751699318523,0.36943823,2532.7,2532.6,8.031]
[1751699321736,4.31779373,2532.7,2532.6,8.031]
[1751699322233,0.36943823,2532.7,2532.6,8.031]
[1751699323130,0.71683823,2532.7,2532.6,8.031]
[1751699323712,4.66519373,2532.7,2532.6,8.031]
[1751699324131,6.52652255,2532.7,2532.6,8.031]
[1751699324338,10.0,2532.6,2532.2,2.1368]
[1751699324517,3.94890211,2532.4,2532.3,8.013]
[1751699324713,0.36943823,2532.4,2532.3,8.013]
[1751699327648,4.31826148,2532.4,2532.3,8.013]
[1751699329249,4.31873307,2532.4,2532.3,8.013]
[1751699330849,0.36990982,2532.4,2532.3,8.013]
[1751699331518,4.31873307,2532.4,2532.3,8.013]
[1751699331929,0.36990982,2532.4,2532.3,8.013]
[1751699336952,4.31873307,2532.4,2532.3,8.013]
[1751699337251,6.16513913,2532.4,2532.3,8.004]
[1751699337846,6.16513913,2532.4,2532.2,1.94]
[1751699337847,3.94897918,2532.3,2532.2,1.94]
[1751699338065,4.515689,2532.3,2532.2,9.944]
[1751699338265,0.56670982,2532.3,2532.2,9.944]
[1751699338425,4.515689,2532.3,2532.2,9.944]
[1751699338621,5.5467889,2532.3,2532.2,9.944]
[1751699339553,3.9492615,2532.2,2531.8,0.1968]
[1751699339753,0.36990982,2532.1,2531.8,0.1968]
[1751699340054,4.3194896,2532.0,2531.7,1.955]
[1751699340249,4.7961383,2532.0,2531.9,8.003]
[1751699340419,5.16600462,2532.0,2531.9,8.003]
[1751699340622,1.21642484,2532.0,2531.6,0.1968]
[1751699340819,0.36986632,2531.9,2531.7,8.003]
[1751699341023,0.36986632,2531.8,2531.7,8.003]
[1751699341231,0.36986632,2531.8,2531.4,0.1968]
[1751699341455,0.36986632,2531.7,2531.5,8.004]
[1751699341655,0.36986632,2531.6,2531.5,8.004]
[1751699343162,0.3695978,2531.6,2531.5,8.004]
[1751699343627,0.3695978,2531.6,2531.5,11.95422713]
[1751699343825,0.3695978,2531.6,2531.5,8.004]
[1751699344722,0.3695978,2531.6,2531.5,8.002]
[1751699345466,0.3695978,2531.6,2531.4,0.1968]
[1751699345762,14.29778318,2531.4,2531.3,8.0469866]
[1751699346059,16.54882179,2531.4,2531.3,0.0439866]
[1751699349061,18.50482179,2531.4,2531.3,0.0439866]
[1751699353765,16.54882179,2531.4,2531.3,0.0439866]
[1751699356232,16.54882179,2531.4,2531.3,1e-08]
[1751699356635,17.09882179,2531.4,2531.3,1e-08]
[1751699358374,17.3850346,2531.4,2531.3,1e-08]
[1751699358551,17.09882179,2531.4,2531.3,1e-08]
[1751699359244,47.09882179,2531.4,2531.3,1e-08]
[1751699359469,47.09882179,2531.4,2530.9,85.47912704]
[1751699359470,4.2984075,2531.0,2530.9,85.47912704]
[1751699359640,22.16460784,2531.0,2530.9,85.47912704]
[1751699361346,24.11860784,2531.0,2530.9,85.47912704]
[1751699365050,24.11860784,2531.0,2530.9,85.48012704]
[1751699370183,22.16460784,2531.0,2530.9,85.48012704]
[1751699370379,25.14970774,2531.0,2530.9,85.48012704]
[1751699371656,25.148873,2531.0,2530.9,85.48012704]
[1751699373853,14.84856361,2530.9,2530.8,1e-08]
[1751699374056,15.21732667,2530.9,2530.8,1e-08]
[1751699374368,17.09876748,2530.9,2530.8,1e-08]
[1751699375975,24.59537002,2530.9,2530.8,1e-08]
[1751699377559,34.55737002,2530.9,2530.8,1e-08]
[1751699378096,24.59537002,2530.9,2530.8,1e-08]
[1751699378270,34.55737002,2530.9,2530.8,1e-08]
[1751699380576,34.55839651,2530.9,2530.8,1e-08]
[1751699381498,34.55839651,2530.9,2530.8,0.00100001]
[1751699381805,34.55839651,2530.9,2530.8,1e-08]
[1751699383092,14.50163202,2530.6,2530.5,0.001]
[1751699383298,24.56073772,2530.6,2530.5,0.001]
[1751699386485,24.56114277,2530.6,2530.5,0.001]
[1751699390906,24.56114277,2530.6,2530.5,1e-08]
[1751699391096,24.56114277,2530.6,2530.2,0.0439866]
[1751699391097,14.84950054,2530.3,2530.2,0.0439866]
[1751699391294,25.58321322,2530.3,2530.2,0.0439866]
[1751699392308,3.95256916,2530.0,2529.7,0.0439866]
[1751699392508,22.3693663,2530.0,2529.7,0.0439866]
[1751699392874,22.7167663,2530.0,2529.7,0.0439866]
[1751699393068,23.7478662,2530.0,2529.7,0.0439866]
[1751699393269,31.7488662,2530.0,2529.7,0.0439866]
[1751699395279,44.85028165,2529.8,2529.7,0.0439866]
[1751699395477,53.22247625,2529.8,2529.7,0.0439866]
[1751699395670,55.10391706,2529.8,2529.7,0.0439866]
[1751699398206,55.10391706,2529.8,2529.7,1e-08]
[1751699399395,13.9530379,2529.7,2529.6,1e-08]
[1751699399598,16.2722325,2529.7,2529.6,1e-08]
[1751699399793,18.11754611,2529.7,2529.6,1e-08]
[1751699400822,28.97858484,2529.7,2529.6,1e-08]
[1751699401123,58.97858484,2529.7,2529.6,1e-08]
[1751699401311,66.97958484,2529.7,2529.6,1e-08]
[1751699402218,66.51594611,2529.7,2529.6,1e-08]
[1751699402521,26.01594611,2529.7,2529.6,1e-08]
[1751699402721,35.96694611,2529.7,2529.6,1e-08]
[1751699402910,36.51694611,2529.7,2529.6,1e-08]
[1751699403116,35.96545725,2529.7,2529.6,1e-08]
[1751699403320,36.51545725,2529.7,2529.6,1e-08]
[1751699403516,36.16805725,2529.7,2529.6,1e-08]
[1751699404724,26.21705725,2529.7,2529.6,1e-08]
[1751699404918,36.17205725,2529.7,2529.6,1e-08]
[1751699405304,26.21705725,2529.7,2529.6,1e-08]
[1751699405504,28.16705725,2529.7,2529.6,1e-08]
[1751699407699,26.21705725,2529.7,2529.6,1e-08]
[1751699407898,18.16705725,2529.7,2529.6,1e-08]
[1751699408100,28.16705725,2529.7,2529.6,1e-08]
[1751699409431,26.21705725,2529.7,2529.6,1e-08]
[1751699409644,28.16705725,2529.7,2529.6,1e-08]
[1751699410101,26.21705725,2529.7,2529.6,1e-08]
[1751699410301,28.16705725,2529.7,2529.6,1e-08]
[1751699410502,26.21705725,2529.7,2529.6,1e-08]
[1751699410802,28.16705725,2529.7,2529.6,1e-08]
[1751699415840,28.97809598,2529.7,2529.6,1e-08]
[1751699416005,36.98009598,2529.7,2529.6,1e-08]
[1751699416203,36.98209598,2529.7,2529.6,1e-08]
[1751699417543,36.51845725,2529.7,2529.6,1e-08]
[1751699417736,36.51931165,2529.7,2529.6,1e-08]
[1751699419656,3.95366306,2529.3,2529.2,0.0439866]
[1751699419947,14.3232232,2529.3,2529.2,0.0439866]
[1751699424155,14.8732232,2529.3,2529.2,0.0439866]
[1751699425465,14.8732232,2529.3,2528.8,0.7546]
[1751699425466,3.95428842,2528.9,2528.8,0.7546]
[1751699425761,5.11469373,2528.9,2528.8,0.7546]
[1751699426061,4.32384856,2528.9,2528.8,0.7546]
[1751699429264,3.95428842,2528.9,2528.8,0.7546]
[1751699429563,4.32472497,2528.9,2528.8,0.7546]
[1751699432373,4.32471015,2528.9,2528.8,0.7546]
[1751699433061,4.32471015,2528.9,2528.8,0.7556]
[1751699438551,5.34749749,2528.9,2528.8,0.001]
[1751699447887,4.32471015,2528.9,2528.8,0.001]
[1751699449996,4.32471015,2528.9,2528.8,0.7724]
[1751699461081,4.32543293,2528.9,2528.8,0.7724]
[1751699463367,4.32542835,2528.9,2528.8,0.7724]
[1751699464799,4.32542835,2528.9,2528.8,0.001]
[1751699465104,5.34828762,2528.9,2528.8,0.001]
[1751699466397,4.32542835,2528.9,2528.8,0.001]
[1751699479225,14.32542835,2528.9,2528.8,0.001]
[1751699483893,16.26542835,2528.9,2528.8,0.001]
[1751699486697,14.32542835,2528.9,2528.8,0.8288]
[1751699495439,14.32542835,2528.9,2528.8,0.001]
[1751699501940,14.32507849,2528.9,2528.8,0.001]
[1751699506048,10.37079007,2528.9,2528.8,0.001]
[1751699507122,10.56839007,2528.9,2528.8,0.001]
[1751699507322,10.56839007,2528.9,2528.8,0.7575]
[1751699508029,0.56839007,2528.9,2528.8,2.0322042]
[1751699508233,0.37079007,2528.9,2528.8,9.52880674]
[1751699509442,0.37079007,2528.9,2528.8,2.0322042]
[1751699513950,0.37079007,2528.9,2528.8,5.98664899]
[1751699514163,0.37079007,2528.9,2528.8,13.48325153]
[1751699514471,0.37079007,2528.9,2528.8,13.68085153]
[1751699516571,10.002,2529.2,2528.8,13.68085153]
[1751699516788,0.3703264,2529.1,2529.0,0.7884]
[1751699517071,0.3703264,2529.1,2529.0,4.74253206]
[1751699517368,0.3703264,2529.1,2529.0,4.94013206]
[1751699517973,0.3703264,2529.1,2529.0,4.94888746]
[1751699518738,0.3703264,2529.1,2529.0,4.98842878]
[1751699518966,0.3703264,2529.1,2529.0,7.73428531]
[1751699519744,0.3703264,2529.1,2529.0,7.69474399]
[1751699520080,0.3703264,2529.1,2529.0,7.73428531]
[1751699520303,0.3703264,2529.1,2529.0,8.28428531]
[1751699520578,0.002,2529.2,2529.1,12.23897826]